bitfinex/quotes_ETHUSD_20240713
["timestamp","ask_amount","ask_price","bid_price","bid_amount"]
[1720836363460,8.29979171,3136.2,3134.8,2.2681]
[1720836363687,6.31162933,3136.2,3134.8,2.2681]
[1720836363883,8.63115211,3136.2,3134.8,2.2681]
[1720836364083,6.31162933,3136.2,3134.8,2.2681]
[1720836365094,6.31162933,3136.2,3134.8,4.50109]
[1720836365298,3.364,3136.0,3134.8,2.2681]
[1720836365521,1.32292649,3135.4,3134.8,2.2681]
[1720836365995,1.32292649,3135.4,3134.9,0.19843931]
[1720836366494,2.13392649,3135.5,3134.9,0.19843931]
[1720836366850,2.13392649,3135.5,3134.8,2.2681]
[1720836367157,2.13392649,3135.5,3134.4,2.23327]
[1720836367158,2.4945,3135.4,3134.9,0.19848943]
[1720836367395,2.4945,3135.4,3134.4,2.23326]
[1720836367624,2.4945,3135.4,3135.0,0.19840595]
[1720836367892,2.4945,3135.4,3134.5,0.527761]
[1720836368100,2.4945,3135.4,3135.1,0.19832248]
[1720836368403,2.4945,3135.4,3134.5,0.527761]
[1720836368568,2.4945,3135.4,3134.6,0.19873989]
[1720836369462,2.95734265,3135.4,3134.6,0.19873989]
[1720836369667,0.811,3135.3,3134.6,0.19873989]
[1720836370404,2.95734265,3135.4,3134.6,0.19873989]
[1720836371303,2.4945,3135.4,3134.6,0.19873989]
[1720836379222,2.4945,3135.4,3134.6,2.53673989]
[1720836380711,0.811,3135.5,3134.6,4.76986989]
[1720836381626,2.4008,3135.4,3134.6,2.43186989]
[1720836384119,2.4008,3135.4,3134.7,2.4491]
[1720836384441,3.0,3135.6,3134.8,0.19864994]
[1720836384610,3.0,3135.6,3135.0,2.4491]
[1720836385113,3.0,3135.6,3135.1,0.19839765]
[1720836386958,3.811,3135.6,3135.1,0.19839765]
[1720836387239,2.4008,3135.5,3134.8,2.23294]
[1720836387480,3.5249,3135.5,3134.9,0.19856459]
[1720836388414,0.811,3135.4,3134.9,0.19856459]
[1720836388759,0.811,3135.4,3134.7,2.4491]
[1720836388962,0.811,3135.4,3135.0,0.19848112]
[1720836389278,0.811,3135.4,3134.7,2.4491]
[1720836389279,0.73359,3135.4,3134.7,2.4491]
[1720836389563,0.73359,3135.4,3135.1,0.19839765]
[1720836389762,0.73359,3135.4,3134.7,2.4491]
[1720836389917,0.73359,3135.4,3135.2,0.19831418]
[1720836390118,0.425849,3135.3,3134.7,2.4491]
[1720836390319,0.73359,3135.4,3135.3,0.19823072]
[1720836390698,1.54459,3135.4,3134.7,2.4491]
[1720836390822,1.54459,3135.4,3134.5,4.6823]
[1720836391021,1.54459,3135.4,3134.6,0.19881505]
[1720836391363,0.506949,3135.3,3134.6,0.19881505]
[1720836392626,0.811,3135.2,3134.6,0.19881505]
[1720836392933,0.506949,3135.3,3134.6,0.19881505]
[1720836393144,2.4008,3135.2,3134.6,0.19881505]
[1720836393351,5.4008,3135.2,3134.6,0.19881505]
[1720836393649,6.47939421,3135.2,3134.6,0.19881505]
[1720836396453,7.80315587,3135.2,3134.6,0.19881505]
[1720836397385,1.32376166,3135.0,3134.6,0.19881505]
[1720836397676,1.32376166,3135.0,3134.5,2.4491]
[1720836397841,1.32376166,3135.0,3134.6,0.19885498]
[1720836398047,1.32376166,3135.0,3134.5,2.4491]
[1720836398266,1.32376166,3135.0,3134.6,0.19885498]
[1720836398474,1.32376166,3134.8,3134.5,2.4491]
[1720836398780,1.32376166,3134.8,3134.6,0.19888657]
[1720836399157,1.32376166,3134.8,3134.5,2.4491]
[1720836399356,1.66059821,3134.9,3134.7,0.19880308]
[1720836399557,1.89652146,3134.9,3134.6,0.19888657]
[1720836399888,1.66059821,3134.9,3134.7,0.19880308]
[1720836400056,1.66059821,3134.9,3134.5,2.4491]
[1720836400247,1.32934331,3134.7,3134.6,0.19888657]
[1720836400448,1.66059821,3134.8,3134.3,2.344]
[1720836400670,1.32985882,3134.6,3134.4,0.1990545]
[1720836402495,1.32985882,3134.5,3134.4,0.1990545]
[1720836402722,1.66232361,3134.6,3134.4,0.1990545]
[1720836403059,1.66232361,3134.5,3134.4,0.1990545]
[1720836404689,1.66321623,3134.5,3134.4,0.1990545]
[1720836404890,1.99585948,3134.7,3134.4,0.1990545]
[1720836406494,1.99585948,3134.6,3134.3,2.344]
[1720836406674,1.99585948,3134.6,3134.4,0.19905728]
[1720836406875,2.32850272,3134.9,3134.4,0.19905728]
[1720836406876,1.99585948,3134.7,3134.4,0.19905728]
[1720836407466,1.99585948,3134.6,3134.4,0.19905728]
[1720836408197,1.99651943,3134.6,3134.4,0.19905728]
[1720836408404,1.99651943,3134.5,3134.4,0.19905728]
[1720836409370,2.32927267,3134.7,3134.4,0.19905728]
[1720836409790,1.99756716,3134.5,3134.4,0.19905728]
[1720836409992,2.32927267,3134.7,3134.4,0.19905728]
[1720836410195,1.99756796,3134.5,3134.4,0.19905728]
[1720836410391,1.99747948,3134.5,3134.4,0.19905728]
[1720836410602,2.33049595,3134.7,3134.4,0.19905728]
[1720836411478,1.43404343,3135.0,3134.4,0.19905728]
[1720836411686,1.99756709,3134.5,3134.3,2.344]
[1720836411887,1.99756709,3134.4,3134.3,2.344]
[1720836412099,1.99746529,3134.4,3134.3,2.344]
[1720836412504,1.99746529,3134.5,3134.3,2.344]
[1720836413316,1.99746529,3134.4,3134.3,2.344]
[1720836414016,1.99746529,3134.5,3134.3,2.344]
[1720836414884,1.99724832,3134.5,3134.3,2.344]
[1720836416819,1.99724832,3134.5,3134.1,4.57744]
[1720836417018,1.66424503,3134.2,3134.1,4.57744]
[1720836417724,1.66424503,3134.2,3134.1,4.77680446]
[1720836417910,1.66424503,3134.2,3134.1,5.55894691]
[1720836418316,1.66420831,3134.2,3134.1,5.55894691]
[1720836421150,1.66419123,3134.2,3134.1,5.55894691]
[1720836421494,1.66419123,3134.2,3134.1,3.32550691]
[1720836421851,1.66419123,3134.2,3134.1,2.54336446]
[1720836421993,1.99702948,3134.4,3134.1,2.54336446]
[1720836423634,1.99702948,3134.4,3134.1,0.19936446]
[1720836423846,1.99702948,3134.4,3133.9,4.59609]
[1720836424042,1.66394874,3134.1,3134.0,0.19947678]
[1720836424339,1.66126061,3134.1,3134.0,0.76013346]
[1720836424548,1.99660179,3134.4,3134.0,0.76013346]
[1720836425911,1.99660179,3134.3,3134.0,0.76013346]
[1720836426243,1.99660179,3134.1,3134.0,0.19947678]
[1720836426408,1.99660179,3134.1,3133.2,2.3625]
[1720836426614,1.99634487,3133.6,3133.3,0.20006438]
[1720836426809,1.83858445,3133.6,3133.3,0.20006438]
[1720836427145,2.32936875,3133.9,3133.3,0.20006438]
[1720836427146,2.32873764,3133.9,3133.3,0.20006438]
[1720836427314,0.23287376,3133.8,3133.3,0.20006438]
[1720836427515,0.23287376,3133.8,3133.2,2.3625]
[1720836427716,2.32732471,3133.9,3133.2,2.3625]
[1720836428159,2.32732471,3134.0,3133.2,2.3625]
[1720836428387,2.3482,3133.9,3133.2,2.3625]
[1720836428564,2.3482,3133.9,3133.1,0.811]
[1720836428858,1.32902804,3133.3,3133.2,0.20014795]
[1720836429174,1.32902804,3133.3,3133.2,0.77222396]
[1720836429521,1.32902804,3133.3,3133.2,0.20014795]
[1720836429837,7.43,3133.8,3133.2,0.20014795]
[1720836430036,7.43,3133.8,3133.0,4.7096121]
[1720836430221,7.43,3133.8,3133.1,0.20023152]
[1720836430222,2.3482,3133.2,3133.1,0.20023152]
[1720836430422,3.47512,3133.2,3133.0,0.1128421]
[1720836430854,2.32340585,3133.1,3133.0,0.1128421]
[1720836431345,5.79852585,3133.2,3133.0,0.1128421]
[1720836432165,1.12692,3133.2,3133.0,0.1128421]
[1720836432353,4.67160585,3133.1,3133.0,0.1128421]
[1720836432523,9.28135844,3133.1,3133.0,0.1128421]
[1720836433247,9.2754738,3133.1,3133.0,0.1128421]
[1720836434119,9.27539691,3133.1,3133.0,0.1128421]
[1720836434320,6.95795259,3133.1,3133.0,0.1128421]
[1720836436177,8.94078214,3133.1,3133.0,0.1128421]
[1720836437123,6.95795259,3133.1,3133.0,0.1128421]
[1720836438125,7.79792453,3133.1,3133.0,0.1128421]
[1720836438469,8.60892453,3133.1,3133.0,0.1128421]
[1720836439141,6.95795259,3133.1,3133.0,0.1128421]
[1720836439341,6.14695259,3133.1,3133.0,0.1128421]
[1720836439557,6.95795259,3133.1,3133.0,0.1128421]
[1720836440227,8.27796539,3133.1,3133.0,0.1128421]
[1720836440872,5.92976539,3133.1,3133.0,0.1128421]
[1720836441074,3.0,3133.1,3133.0,0.1128421]
[1720836441368,7.43,3133.4,3133.0,0.1128421]
[1720836441369,7.43,3133.4,3133.0,0.31353644]
[1720836441529,7.43,3133.4,3133.0,0.1128421]
[1720836441530,3.0,3133.3,3133.0,0.1128421]
[1720836441726,3.0,3133.3,3133.1,0.2005875]
[1720836442037,3.59213926,3133.3,3133.1,0.2005875]
[1720836443270,3.59213926,3133.3,3133.1,0.19883727]
[1720836446468,0.59213926,3133.3,3133.1,0.19883727]
[1720836446672,7.43,3133.4,3133.1,0.19883727]
[1720836450038,0.811,3133.3,3133.1,0.19883727]
[1720836450429,0.811,3133.3,3133.0,0.1128421]
[1720836450736,3.0,3133.4,3133.0,0.1128421]
[1720836450737,0.811,3133.1,3133.0,0.1128421]
[1720836451469,0.811,3133.1,3133.0,0.3117391]
[1720836451666,0.811,3133.3,3133.0,0.1128421]
[1720836451877,0.3811,3133.2,3133.0,0.1128421]
[1720836454353,0.3811,3133.2,3133.1,0.19881342]
[1720836454673,0.3811,3133.2,3133.0,0.1128421]
[1720836454874,0.3811,3133.2,3133.1,0.19881342]
[1720836455068,0.3811,3133.2,3133.0,0.1128421]
[1720836455250,0.3811,3133.2,3133.1,0.19881342]
[1720836455454,0.3811,3133.2,3133.0,0.1128421]
[1720836455762,0.3811,3133.2,3133.1,0.19881342]
[1720836456146,0.3811,3133.2,3133.0,0.1128421]
[1720836456766,0.3811,3133.2,3133.1,0.19881342]
[1720836457059,0.3811,3133.2,3133.0,0.1128421]
[1720836458649,0.25128164,3133.1,3133.0,0.1128421]
[1720836458850,0.3811,3133.2,3133.0,0.1128421]
[1720836461479,1.70181639,3133.2,3133.0,0.1128421]
[1720836461684,0.3811,3133.2,3133.0,0.1128421]
[1720836462071,1.70181639,3133.2,3133.0,0.1128421]
[1720836463085,2.2977,3133.1,3133.0,0.1128421]
[1720836463282,4.51363667,3133.1,3133.0,0.1128421]
[1720836463585,2.86274119,3133.1,3133.0,0.1128421]
[1720836465252,0.56504119,3133.1,3133.0,0.1128421]
[1720836465553,2.2977,3133.1,3133.0,0.1128421]
[1720836465966,5.2977,3133.1,3133.0,0.1128421]
[1720836467296,8.6617,3133.1,3133.0,0.1128421]
[1720836467461,11.52650897,3133.1,3133.0,0.1128421]
[1720836467791,9.2117,3133.1,3133.0,0.1128421]
[1720836467970,12.79988692,3133.1,3133.0,0.1128421]
[1720836469363,10.48369881,3133.1,3133.0,0.1128421]
[1720836471360,13.22450922,3133.1,3133.0,0.1128421]
[1720836472172,10.48369881,3133.1,3133.0,0.1128421]
[1720836473230,10.81758262,3133.1,3133.0,0.1128421]
[1720836475220,14.12111573,3133.1,3133.0,0.1128421]
[1720836476818,10.20711573,3133.1,3133.0,0.1128421]
[1720836476986,4.60588262,3133.1,3133.0,0.1128421]
[1720836478129,6.90358262,3133.1,3133.0,0.1128421]
[1720836479625,10.20711573,3133.1,3133.0,0.1128421]
[1720836480696,13.57111573,3133.1,3133.0,0.1128421]
[1720836480901,14.12111573,3133.1,3133.0,0.1128421]
[1720836484916,10.81758262,3133.1,3133.0,0.1128421]
[1720836493149,10.48369881,3133.1,3133.0,0.1128421]
[1720836503240,10.81758887,3133.1,3133.0,0.1128421]
[1720836505094,8.51988887,3133.1,3133.0,0.1128421]
[1720836519577,8.67821921,3133.1,3133.0,0.1128421]
[1720836521705,8.51988887,3133.1,3133.0,0.1128421]
[1720836524484,3.33389006,3133.1,3133.0,2.3783421]
[1720836524689,0.33389006,3133.1,3133.0,2.3783421]
[1720836525028,3.08593608,3133.1,3133.0,2.3783421]
[1720836525208,2.66408272,3133.1,3133.0,5.4236221]
[1720836525520,0.33389006,3133.1,3133.0,5.62035187]
[1720836525816,0.33389006,3133.1,3133.0,6.40581906]
[1720836526394,1.9955945,3133.1,3133.0,8.64009906]
[1720836526595,1.66215008,3133.1,3133.0,8.64009906]
[1720836527599,0.33389006,3133.1,3133.0,8.64009906]
[1720836532322,0.33389006,3133.1,3133.0,2.57507187]
[1720836532729,1.66215008,3133.1,3133.0,2.57507187]
[1720836533115,0.33389006,3133.1,3133.0,2.57507187]
[1720836539003,0.33389006,3133.1,3133.0,7.04363187]
[1720836552177,0.33389006,3133.1,3133.0,9.27791187]
[1720836552415,1.322593,3134.4,3133.7,2.3762]
[1720836552530,1.322593,3134.4,3133.7,3.1872]
[1720836552736,1.322593,3134.4,3133.8,0.19570272]
[1720836552974,0.33372921,3134.3,3133.8,0.19570272]
[1720836553335,0.33372921,3134.3,3133.7,5.42097]
[1720836553535,0.33372921,3134.3,3133.9,1.00661919]
[1720836553739,0.33372921,3134.3,3134.1,0.811]
[1720836554045,0.33372921,3134.3,3134.2,0.19534539]
[1720836554235,0.33372921,3134.3,3134.2,2.57154539]
[1720836558890,0.33372921,3134.3,3134.2,3.35650293]
[1720836560883,0.33372921,3134.3,3134.2,5.58992293]
[1720836566064,0.33372921,3134.3,3134.2,0.19534539]
[1720836566261,0.33372921,3134.3,3133.7,3.04477]
[1720836566465,0.33372921,3134.3,3133.8,0.19557731]
[1720836566659,0.33372921,3134.3,3133.7,3.04477]
[1720836566890,0.33372921,3134.3,3133.8,0.19557731]
[1720836567297,0.33372921,3134.3,3133.8,0.78964273]
[1720836567502,0.33372921,3134.3,3133.9,0.19549378]
[1720836567972,0.33372921,3134.3,3133.5,3.0449]
[1720836568294,0.33372921,3134.3,3133.7,0.811]
[1720836568600,0.33372921,3134.3,3133.9,0.811]
[1720836568897,0.33372921,3134.3,3134.0,0.19541025]
[1720836569566,1.65550648,3134.3,3134.0,0.19541025]
[1720836570095,1.65550648,3134.3,3133.7,3.04475]
[1720836570295,1.65550648,3134.3,3134.1,0.19532672]
[1720836570595,1.32177727,3134.2,3133.8,0.527854]
[1720836571171,1.32177727,3134.1,3133.8,0.527854]
[1720836571371,0.33372921,3134.3,3133.8,0.527854]
[1720836571703,1.32595262,3134.1,3133.8,0.527854]
[1720836572967,1.32595262,3134.2,3133.9,1.1682604]
[1720836573198,1.32595262,3134.2,3134.1,0.811]
[1720836573397,1.65968183,3134.3,3134.1,0.811]
[1720836573598,1.32595262,3134.2,3134.1,0.811]
[1720836573781,1.32595262,3134.2,3134.1,0.46809419]
[1720836574900,1.32624913,3134.2,3134.1,0.46809419]
[1720836578588,1.99185799,3134.3,3134.1,0.46809419]
[1720836579500,1.65812878,3134.2,3134.1,0.46809419]
[1720836579808,1.32691415,3134.2,3134.1,1.27909419]
[1720836582478,1.32691415,3134.2,3134.1,3.51258419]
[1720836582808,1.66064336,3134.3,3134.2,2.23342]
[1720836583005,1.66064336,3134.3,3134.2,2.761274]
[1720836583306,1.32691415,3134.3,3134.2,2.95656645]
[1720836584277,1.65923335,3134.4,3134.3,2.23335]
[1720836584506,1.65923335,3134.4,3134.3,3.23955894]
[1720836584806,1.3283941,3134.4,3134.3,3.23955894]
[1720836585048,1.3283941,3134.4,3134.3,3.59681934]
[1720836586480,1.66071733,3134.6,3134.4,2.23328]
[1720836586481,1.3283941,3134.5,3134.4,2.23328]
[1720836586700,1.3283941,3134.6,3134.4,3.23933577]
[1720836588386,1.32907074,3134.5,3134.4,3.23933577]
[1720836588711,1.32907074,3134.6,3134.4,3.23933577]
[1720836588892,1.32907074,3134.6,3134.5,2.70130419]
[1720836589298,1.66133843,3134.7,3134.5,2.89627646]
[1720836589821,9.42360612,3135.0,3134.5,2.89627646]
[1720836589822,1.32935905,3134.8,3134.6,9.97139]
[1720836589995,1.32935905,3134.9,3134.8,4.46598]
[1720836590314,7.43,3135.0,3134.9,4.46584]
[1720836590496,7.43,3135.0,3134.9,5.27684]
[1720836590697,7.43,3135.0,3134.9,5.47145416]
[1720836592220,7.43,3135.0,3134.9,2.42753416]
[1720836592404,9.09119255,3135.0,3134.9,0.19461416]
[1720836592907,9.09119255,3135.0,3134.9,0.19456774]
[1720836592908,7.43,3135.0,3134.9,0.19456774]
[1720836593115,11.82503418,3135.0,3134.9,0.19456774]
[1720836593284,11.82503418,3135.0,3134.5,5.27734]
[1720836593488,1.32882687,3134.6,3134.5,3.04415]
[1720836596726,1.66098761,3134.8,3134.6,2.23313]
[1720836596727,1.32882687,3134.7,3134.6,2.23313]
[1720836597024,1.32882687,3134.7,3134.6,3.04413]
[1720836597704,1.32882687,3134.7,3134.6,3.2389482]
[1720836598316,1.66145987,3134.8,3134.6,3.2389482]
[1720836598486,7.43,3135.0,3134.6,3.2389482]
[1720836598690,1.661461,3134.8,3134.6,3.2389482]
[1720836599998,3.917161,3134.8,3134.6,1.0058182]
[1720836600799,1.661461,3134.7,3134.6,1.0058182]
[1720836601228,1.66105271,3134.7,3134.6,1.0058182]
[1720836603499,1.66105271,3134.7,3134.6,0.1948182]
[1720836603706,0.39167527,3134.7,3134.4,0.811]
[1720836603925,1.66090661,3134.5,3134.4,0.811]
[1720836604552,2.2557,3134.8,3134.4,0.811]
[1720836604759,1.66083922,3134.5,3134.4,0.811]
[1720836604966,2.2557,3134.8,3134.4,0.811]
[1720836605125,1.66084018,3134.5,3134.4,0.811]
[1720836607026,1.66084018,3134.6,3134.4,0.811]
[1720836607221,1.32872802,3134.5,3134.4,4.50818]
[1720836607480,1.32872802,3134.5,3134.4,5.31918]
[1720836609627,1.32872802,3134.5,3134.4,3.04428]
[1720836612757,1.32872802,3134.5,3134.4,3.23928282]
[1720836616060,1.32872802,3134.5,3134.4,5.51418282]
[1720836616275,1.32872802,3134.5,3134.4,6.2889361]
[1720836617362,1.66150005,3134.6,3134.5,2.23321]
[1720836617564,1.66183039,3134.6,3134.5,2.23321]
[1720836617771,1.66183039,3134.6,3134.5,2.42812932]
[1720836617963,1.66179065,3134.6,3134.5,2.42812932]
[1720836618156,1.66179065,3134.6,3134.5,0.19491932]
[1720836618377,4.24984879,3134.7,3134.5,0.19491932]
[1720836618686,2.71408916,3134.7,3134.4,0.811]
[1720836618867,1.66200737,3134.5,3134.4,0.811]
[1720836619390,4.24984879,3134.7,3134.4,0.811]
[1720836621389,1.99486376,3134.7,3134.4,0.811]
[1720836621885,1.99486376,3134.6,3134.4,0.811]
[1720836624696,2.59624283,3134.9,3134.4,0.811]
[1720836624899,1.99566253,3134.6,3134.4,0.811]
[1720836625096,1.99566253,3134.6,3134.5,0.19494346]
[1720836625290,2.32827295,3134.8,3134.5,0.19494346]
[1720836628235,2.32893184,3134.8,3134.5,0.19494346]
[1720836631519,2.32886248,3134.8,3134.5,0.19494346]
[1720836634991,2.32841697,3134.8,3134.5,0.19494346]
[1720836635194,2.59624283,3134.9,3134.5,0.19494346]
[1720836635400,2.32834425,3134.8,3134.5,0.19494346]
[1720836635602,2.32834425,3134.7,3134.0,0.811]
[1720836635808,3.59886711,3134.9,3134.6,0.18847605]
[1720836635809,2.75035664,3134.8,3134.6,0.18847605]
[1720836636103,2.2622,3134.7,3134.0,0.811]
[1720836636302,1.99519979,3134.1,3133.8,0.811]
[1720836636833,1.99519979,3134.0,3133.8,0.811]
[1720836637636,1.99519979,3134.0,3133.9,4.55023]
[1720836637840,1.99519979,3134.2,3133.9,4.55023]
[1720836638005,2.32843757,3134.4,3134.1,0.811]
[1720836638344,0.33407085,3134.5,3134.1,0.811]
[1720836638515,2.32826666,3134.4,3134.1,0.811]
[1720836639115,1.99552233,3134.2,3134.1,0.811]
[1720836639334,2.66233751,3134.5,3134.1,0.811]
[1720836639637,1.99550786,3134.2,3134.1,0.811]
[1720836640937,2.66233751,3134.5,3134.1,0.811]
[1720836640938,1.99550786,3134.3,3134.1,0.811]
[1720836641133,1.99550786,3134.3,3134.1,1.570481]
[1720836641707,0.33407085,3134.5,3134.1,1.570481]
[1720836641908,1.99503335,3134.3,3134.1,1.570481]
[1720836642510,1.99503335,3134.3,3134.2,0.18657111]
[1720836645219,0.33407085,3134.5,3134.2,0.18657111]
[1720836645409,1.99528556,3134.3,3134.2,0.18657111]
[1720836645609,0.33407085,3134.5,3134.2,0.18657111]
[1720836645812,1.99527808,3134.3,3134.2,0.18657111]
[1720836646532,1.99527808,3134.4,3134.3,2.359]
[1720836646831,1.99527808,3134.4,3134.3,3.72900411]
[1720836647034,1.99527808,3134.4,3134.3,3.91551988]
[1720836647421,1.99527808,3134.4,3134.3,6.14886988]
[1720836648215,1.99539866,3134.4,3134.3,6.14886988]
[1720836648639,1.99543028,3134.4,3134.3,8.38215988]
[1720836649315,1.99543028,3134.4,3134.3,6.14880988]
[1720836649826,1.99543028,3134.4,3134.3,0.18651577]
[1720836650148,1.99543028,3134.4,3134.1,3.04445]
[1720836650354,1.99543028,3134.4,3134.3,0.18653574]
[1720836650542,1.99543028,3134.4,3134.2,0.18661925]
[1720836650743,1.99543028,3134.4,3134.3,0.18653574]
[1720836650941,9.7466,3134.7,3134.3,0.18653574]
[1720836651142,9.7466,3134.7,3134.1,3.04445]
[1720836651143,1.99537098,3134.4,3134.1,3.04445]
[1720836651520,1.99537098,3134.4,3134.2,0.18661925]
[1720836651757,1.99537098,3134.4,3134.1,3.04445]
[1720836651950,9.7466,3134.7,3134.1,3.04445]
[1720836652139,9.7466,3134.7,3134.2,0.18662016]
[1720836652339,1.99526823,3134.4,3134.2,0.18662016]
[1720836652540,1.99526823,3134.4,3134.1,3.04445]
[1720836652956,1.99526823,3134.4,3134.2,0.18662016]
[1720836653261,1.99526823,3134.4,3134.1,3.04445]
[1720836653633,1.99526823,3134.4,3134.2,0.18662016]
[1720836654063,1.99526823,3134.4,3134.1,3.04445]
[1720836654438,1.99526823,3134.4,3134.2,0.18662016]
[1720836654854,1.99526823,3134.4,3134.1,3.04445]
[1720836655264,1.99526823,3134.3,3134.1,3.04445]
[1720836655474,1.99505228,3134.3,3134.2,0.18662198]
[1720836655843,2.3166,3134.7,3134.1,3.04445]
[1720836656066,1.99507991,3134.3,3134.1,3.04445]
[1720836656232,1.99507991,3134.3,3134.2,0.18662198]
[1720836656431,1.99507991,3134.3,3134.1,3.04445]
[1720836656763,1.99507991,3134.3,3134.2,0.18662198]
[1720836656968,1.99507991,3134.4,3134.2,0.18662198]
[1720836657166,1.99507991,3134.4,3134.1,3.04445]
[1720836658160,1.99507991,3134.3,3134.1,3.04445]
[1720836658362,1.99530666,3134.3,3134.1,3.04445]
[1720836658534,1.99530666,3134.3,3134.2,0.18662198]
[1720836658734,1.99530666,3134.3,3134.1,3.04445]
[1720836658938,1.99530666,3134.3,3134.2,0.18662198]
[1720836659166,1.99530666,3134.3,3134.1,3.04445]
[1720836659369,1.99530666,3134.3,3134.1,0.811]
[1720836659573,1.99530666,3134.2,3133.9,0.811]
[1720836661071,4.49250666,3134.2,3133.7,2.359]
[1720836661259,1.99530666,3134.0,3133.5,0.811]
[1720836661462,1.66225137,3133.6,3133.5,0.811]
[1720836661659,1.99470164,3133.8,3133.5,0.811]
[1720836662251,1.66192095,3133.6,3133.5,0.811]
[1720836662562,1.99470164,3133.8,3133.5,0.811]
[1720836663185,1.6619037,3133.6,3133.5,0.811]
[1720836664290,1.66193877,3133.6,3133.5,0.811]
[1720836664788,1.66193877,3133.6,3133.4,2.23399]
[1720836664983,1.66193877,3133.6,3133.5,0.811]
[1720836665367,1.66223625,3133.6,3133.5,0.811]
[1720836665566,1.9946835,3133.8,3133.5,0.811]
[1720836665768,1.66232192,3133.6,3133.5,0.811]
[1720836666379,1.66232192,3133.6,3133.5,1.361888]
[1720836667267,4.4918835,3133.8,3133.5,0.811]
[1720836667467,1.9946835,3133.7,3133.3,0.811]
[1720836667701,2.4972,3133.8,3133.3,0.811]
[1720836667702,1.9946835,3133.6,3133.3,0.811]
[1720836668208,2.4972,3133.8,3133.3,0.811]
[1720836668366,1.99404049,3133.6,3133.3,0.811]
[1720836669290,1.66114588,3133.4,3133.3,0.811]
[1720836669813,1.99404049,3133.6,3133.0,0.1128421]
[1720836670092,1.66077997,3133.3,3133.1,0.811]
[1720836671098,1.99404049,3133.3,3133.0,0.1128421]
[1720836671262,2.4972,3133.1,3133.0,0.1128421]
[1720836671701,2.77232524,3133.2,3133.0,0.1128421]
[1720836671878,0.811,3133.6,3133.0,0.1128421]
[1720836671879,2.32320119,3133.3,3133.0,0.1128421]
[1720836672081,1.99134395,3133.2,3133.1,0.1854851]
[1720836672280,1.99134395,3133.4,3133.1,0.1854851]
[1720836672594,1.99134395,3133.4,3133.0,0.1128421]
[1720836672819,9.9272,3133.8,3133.0,0.1128421]
[1720836672820,1.99134395,3133.2,3133.0,0.1128421]
[1720836672993,1.99134395,3133.2,3133.1,0.1854851]
[1720836673193,2.42279846,3133.2,3133.0,0.1128421]
[1720836673529,1.99134395,3133.2,3133.0,0.1128421]
[1720836674297,1.99134395,3133.3,3133.0,0.1128421]
[1720836674690,1.98926096,3133.3,3133.0,0.1128421]
[1720836674911,1.98924172,3133.3,3133.0,0.1128421]
[1720836675223,2.4972,3133.2,3133.0,0.1128421]
[1720836675522,0.4486148,3133.1,3133.0,0.1128421]
[1720836675820,4.48614797,3133.2,3133.0,0.1128421]
[1720836675987,2.4972,3133.2,3133.0,0.1128421]
[1720836676587,1.98894797,3133.3,3133.0,0.1128421]
[1720836676815,1.65649127,3133.1,3133.0,0.1128421]
[1720836677016,3.47384913,3133.1,3133.0,0.1128421]
[1720836677222,5.79110433,3133.1,3133.0,0.1128421]
[1720836677404,6.47384913,3133.1,3133.0,0.1128421]
[1720836677600,6.80796402,3133.1,3133.0,0.1128421]
[1720836677833,5.99696402,3133.1,3133.0,0.1128421]
[1720836678013,6.80796402,3133.1,3133.0,0.1128421]
[1720836678195,9.12402966,3133.1,3133.0,0.1128421]
[1720836679094,6.80796402,3133.1,3133.0,0.1128421]
[1720836679622,10.72696402,3133.1,3133.0,0.1128421]
[1720836680553,7.35796402,3133.1,3133.0,0.1128421]
[1720836681224,9.67134606,3133.1,3133.0,0.1128421]
[1720836681428,9.67043444,3133.1,3133.0,0.1128421]
[1720836682234,7.35796402,3133.1,3133.0,0.1128421]
[1720836684325,9.33773919,3133.1,3133.0,0.1128421]
[1720836684934,8.7875469,3133.1,3133.0,0.1128421]
[1720836685243,6.80796402,3133.1,3133.0,0.1128421]
[1720836686218,8.4569267,3133.1,3133.0,0.1128421]
[1720836687445,6.80796402,3133.1,3133.0,0.1128421]
[1720836688358,8.45643721,3133.1,3133.0,0.1128421]
[1720836688750,6.80796402,3133.1,3133.0,0.1128421]
[1720836689153,8.45624264,3133.1,3133.0,0.1128421]
[1720836689359,6.80796402,3133.1,3133.0,0.1128421]
[1720836689731,8.45621172,3133.1,3133.0,0.1128421]
[1720836691634,6.80796402,3133.1,3133.0,0.1128421]
[1720836691856,8.45593786,3133.1,3133.0,0.1128421]
[1720836692270,6.80796402,3133.1,3133.0,0.1128421]
[1720836693261,8.45585483,3133.1,3133.0,0.1128421]
[1720836695069,4.98120997,3133.1,3133.0,0.1128421]
[1720836695272,3.33411489,3133.1,3133.0,0.1128421]
[1720836697648,4.14511489,3133.1,3133.0,0.1128421]
[1720836700578,1.14511489,3133.1,3133.0,0.1128421]
[1720836701381,2.46289097,3133.1,3133.0,0.1128421]
[1720836701674,6.17402456,3133.1,3133.0,0.1128421]
[1720836701879,6.17630953,3133.1,3133.0,0.1128421]
[1720836703162,4.85624848,3133.1,3133.0,0.1128421]
[1720836704380,6.50632479,3133.1,3133.0,0.1128421]
[1720836705178,7.24434848,3133.1,3133.0,0.1128421]
[1720836705479,9.22734838,3133.1,3133.0,0.1128421]
[1720836705682,7.24434848,3133.1,3133.0,0.1128421]
[1720836705847,9.22743832,3133.1,3133.0,0.1128421]
[1720836706176,7.24434848,3133.1,3133.0,0.1128421]
[1720836707484,7.79434848,3133.1,3133.0,0.1128421]
[1720836707869,13.47693713,3133.1,3133.0,0.1128421]
[1720836708072,11.16334848,3133.1,3133.0,0.1128421]
[1720836709291,13.89744803,3133.1,3133.0,0.1128421]
[1720836710396,3.369,3132.6,3131.5,0.025]
[1720836710573,1.32351968,3131.7,3131.6,0.18085026]
[1720836710778,2.4653996,3131.8,3131.5,0.025]
[1720836710964,1.32347999,3131.6,3131.5,0.025]
[1720836711161,1.65487694,3131.7,3131.5,0.025]
[1720836711465,1.65487694,3131.6,3131.5,0.025]
[1720836712084,1.65431969,3131.6,3131.5,0.025]
[1720836712284,2.79618363,3131.8,3131.5,0.025]
[1720836712516,1.65452431,3131.6,3131.5,0.025]
[1720836712679,1.98518363,3131.8,3131.5,0.025]
[1720836713067,1.6545485,3131.6,3131.5,0.025]
[1720836713263,1.98518363,3131.8,3131.5,0.025]
[1720836714177,1.65458945,3131.6,3131.5,0.025]
[1720836714369,1.98518363,3131.8,3131.5,0.025]